[Event "*** SCC Grand Prix: Titled Tuesday Blitz"]
[Site "Chess.com"]
[Date "2020.10.13"]
[Round "2"]
[White "Flopezin"]
[Black "Sashadav97"]
[Result "0-1"]
[WhiteElo "2309"]
[BlackElo "2590"]
[TimeControl "180+1"]
[EndTime "10:18:43 PDT"]
[Termination "Sashadav97 won by resignation"]

1. c4 {[%clk 0:03:00.9]} 1... e6 {[%clk 0:02:59.4]} 2. Nf3 {[%clk 0:03:00.7]}
2... d5 {[%clk 0:03:00.3]} 3. g3 {[%clk 0:02:59.9]} 3... dxc4 {[%clk 0:02:52.5]}
4. Qa4+ {[%clk 0:02:59.4]} 4... Bd7 {[%clk 0:02:49]} 5. Qxc4 {[%clk 0:02:58.9]}
5... c5 {[%clk 0:02:48.7]} 6. d4 {[%clk 0:02:46.1]} 6... b5 {[%clk 0:02:38.6]}
7. Qc2 {[%clk 0:02:40.9]} 7... Bc6 {[%clk 0:02:19.2]} 8. dxc5 {[%clk 0:02:31.6]}
8... Nd7 {[%clk 0:02:17.1]} 9. Be3 {[%clk 0:02:24.9]} 9... a5 {[%clk 0:02:12.9]}
10. Bg2 {[%clk 0:02:23.6]} 10... Rc8 {[%clk 0:02:11.5]} 11. O-O {[%clk
0:02:15.3]} 11... Bxc5 {[%clk 0:01:54.2]} 12. Bxc5 {[%clk 0:02:09.3]} 12... Bxf3
{[%clk 0:01:53.6]} 13. Bxf3 {[%clk 0:02:10.2]} 13... Rxc5 {[%clk 0:01:53.5]} 14.
Qd2 {[%clk 0:02:00]} 14... Ngf6 {[%clk 0:01:52.6]} 15. Rd1 {[%clk 0:01:59.3]}
15... O-O {[%clk 0:01:50.2]} 16. Nc3 {[%clk 0:01:59.9]} 16... Qb6 {[%clk
0:01:40.2]} 17. Rac1 {[%clk 0:01:56.1]} 17... h6 {[%clk 0:01:37.6]} 18. Ne4
{[%clk 0:01:47.7]} 18... Nxe4 {[%clk 0:01:35.4]} 19. Bxe4 {[%clk 0:01:46.9]}
19... Nf6 {[%clk 0:01:35.1]} 20. Bf3 {[%clk 0:01:43.4]} 20... Rfc8 {[%clk
0:01:34.5]} 21. Rxc5 {[%clk 0:01:41.1]} 21... Qxc5 {[%clk 0:01:35.4]} 22. Qxa5
{[%clk 0:01:40.2]} 22... g5 {[%clk 0:01:28.6]} 23. Rd8+ {[%clk 0:01:36.6]} 23...
Rxd8 {[%clk 0:01:28.8]} 24. Qxd8+ {[%clk 0:01:37.5]} 24... Kg7 {[%clk
0:01:29.7]} 25. Qd2 {[%clk 0:01:36.5]} 25... Qc4 {[%clk 0:01:01.9]} 26. b3
{[%clk 0:01:31.9]} 26... Qc5 {[%clk 0:01:01.2]} 27. a4 {[%clk 0:01:26.6]} 27...
Qa3 {[%clk 0:00:56.2]} 28. Qc2 {[%clk 0:01:16]} 28... bxa4 {[%clk 0:00:39.6]}
29. bxa4 {[%clk 0:01:16.9]} 29... Kf8 {[%clk 0:00:38.9]} 30. h3 {[%clk
0:01:12.8]} 30... Kg7 {[%clk 0:00:39]} 31. Kg2 {[%clk 0:01:12.8]} 31... h5
{[%clk 0:00:36.9]} 32. Qd2 {[%clk 0:01:02.7]} 32... Qc5 {[%clk 0:00:32.7]} 33.
g4 {[%clk 0:00:48.9]} 33... hxg4 {[%clk 0:00:29.7]} 34. hxg4 {[%clk 0:00:49.8]}
34... Kh6 {[%clk 0:00:20.1]} 35. Qb2 {[%clk 0:00:43.1]} 35... Kg6 {[%clk
0:00:18.5]} 36. Qd2 {[%clk 0:00:41.8]} 36... Kh6 {[%clk 0:00:15.1]} 37. a5
{[%clk 0:00:41.1]} 37... Qc4 {[%clk 0:00:12.6]} 38. Qd3 {[%clk 0:00:34.9]} 38...
Qa4 {[%clk 0:00:10.4]} 39. Qc3 {[%clk 0:00:13.4]} 39... Nxg4 {[%clk 0:00:07.9]}
40. Qh8+ {[%clk 0:00:14]} 40... Kg6 {[%clk 0:00:08.3]} 41. Qg8+ {[%clk
0:00:09.3]} 41... Kf6 {[%clk 0:00:08.7]} 42. Qd8+ {[%clk 0:00:08.8]} 42... Kf5
{[%clk 0:00:06.4]} 43. Qd3+ {[%clk 0:00:07.3]} 43... Ke5 {[%clk 0:00:04.9]} 44.
Qc3+ {[%clk 0:00:05.9]} 44... Kd6 {[%clk 0:00:05.3]} 45. a6 {[%clk 0:00:04.1]}
45... Ne5 {[%clk 0:00:04.1]} 46. Bb7 {[%clk 0:00:04.2]} 46... Qg4+ {[%clk
0:00:02.3]} 47. Kf1 {[%clk 0:00:03.5]} 47... Qa4 {[%clk 0:00:03.1]} 48. Qd2+
{[%clk 0:00:03.3]} 48... Ke7 {[%clk 0:00:02.9]} 49. Qc3 {[%clk 0:00:04.2]} 49...
Kf6 {[%clk 0:00:03]} 50. f4 {[%clk 0:00:03.6]} 50... gxf4 {[%clk 0:00:03.1]} 51.
Qc5 {[%clk 0:00:02.5]} 51... Qa1+ {[%clk 0:00:02.9]} 52. Kf2 {[%clk 0:00:03.2]}
52... Qa2 {[%clk 0:00:01.7]} 53. a7 {[%clk 0:00:03]} 53... Ng4+ {[%clk
0:00:02.3]} 54. Kf3 {[%clk 0:00:03.2]} 54... Ne5+ {[%clk 0:00:02.6]} 55. Ke4
{[%clk 0:00:03.5]} 55... Qxe2+ {[%clk 0:00:02.4]} 56. Kxf4 {[%clk 0:00:03.9]}
56... Qf1+ {[%clk 0:00:01.7]} 57. Ke3 {[%clk 0:00:04.1]} 57... Qe1+ {[%clk
0:00:01.6]} 58. Kd4 {[%clk 0:00:04.9]} 58... Qg1+ {[%clk 0:00:01.9]} 59. Kc3
{[%clk 0:00:05.3]} 59... Qxc5+ {[%clk 0:00:02.4]} 60. Kb3 {[%clk 0:00:05.9]}
60... Qxa7 {[%clk 0:00:03.3]} 0-1

[Event "*** SCC Grand Prix: Titled Tuesday Blitz"]
[Site "Chess.com"]
[Date "2020.10.13"]
[Round "2"]
[White "pedromartinez91"]
[Black "VMikhalevski"]
[Result "1-0"]
[WhiteElo "2519"]
[BlackElo "2710"]
[TimeControl "180+1"]
[EndTime "10:18:44 PDT"]
[Termination "pedromartinez91 won by resignation"]

1. d4 {[%clk 0:03:00.9]} 1... Nf6 {[%clk 0:02:59]} 2. Bf4 {[%clk 0:03:01.4]}
2... d5 {[%clk 0:02:55.9]} 3. e3 {[%clk 0:03:01.1]} 3... Bg4 {[%clk 0:02:55.6]}
4. Qc1 {[%clk 0:02:56.2]} 4... e6 {[%clk 0:02:52.2]} 5. c4 {[%clk 0:02:54.9]}
5... c6 {[%clk 0:02:47.6]} 6. Nd2 {[%clk 0:02:49.3]} 6... Nbd7 {[%clk
0:02:41.1]} 7. h3 {[%clk 0:02:35.8]} 7... Bh5 {[%clk 0:02:39.9]} 8. Ngf3 {[%clk
0:02:36]} 8... Be7 {[%clk 0:02:39]} 9. Be2 {[%clk 0:02:31.2]} 9... O-O {[%clk
0:02:37.3]} 10. O-O {[%clk 0:02:31.3]} 10... Ne4 {[%clk 0:02:36.1]} 11. Qd1
{[%clk 0:02:12.8]} 11... f5 {[%clk 0:02:24.6]} 12. Ne5 {[%clk 0:01:51.2]} 12...
Bxe2 {[%clk 0:02:22.5]} 13. Qxe2 {[%clk 0:01:51.2]} 13... Bf6 {[%clk 0:02:14.9]}
14. Nxe4 {[%clk 0:01:30.8]} 14... fxe4 {[%clk 0:02:08.3]} 15. Qg4 {[%clk
0:01:31.1]} 15... Qe7 {[%clk 0:02:00.5]} 16. b4 {[%clk 0:01:21.8]} 16... Bxe5
{[%clk 0:01:55.9]} 17. dxe5 {[%clk 0:01:17.3]} 17... Rf5 {[%clk 0:01:53.8]} 18.
cxd5 {[%clk 0:01:12.3]} 18... cxd5 {[%clk 0:01:52.8]} 19. Rac1 {[%clk
0:00:50.7]} 19... Nxe5 {[%clk 0:01:52.4]} 20. Bxe5 {[%clk 0:00:49.1]} 20... Rxe5
{[%clk 0:01:52.2]} 21. Qg3 {[%clk 0:00:40.4]} 21... Rg5 {[%clk 0:01:33.1]} 22.
Rc7 {[%clk 0:00:38.9]} 22... Qf6 {[%clk 0:01:08.3]} 23. Qd6 {[%clk 0:00:36.9]}
23... Rf8 {[%clk 0:01:07.1]} 24. Re7 {[%clk 0:00:34]} 24... Rg6 {[%clk
0:00:59.7]} 25. Rxb7 {[%clk 0:00:33.8]} 25... Qf3 {[%clk 0:00:57.2]} 26. Qxe6+
{[%clk 0:00:20.6]} 26... Rxe6 {[%clk 0:00:55.7]} 27. gxf3 {[%clk 0:00:20.9]}
27... Rg6+ {[%clk 0:00:50.2]} 28. Kh2 {[%clk 0:00:20.4]} 28... Rxf3 {[%clk
0:00:49.8]} 29. Rxa7 {[%clk 0:00:17.6]} 29... Rh6 {[%clk 0:00:48.5]} 30. Kg2
{[%clk 0:00:17.4]} 30... Rfxh3 {[%clk 0:00:47.3]} 31. Rc1 {[%clk 0:00:15.9]}
31... Rh2+ {[%clk 0:00:43.1]} 32. Kg3 {[%clk 0:00:15.2]} 32... R6h3+ {[%clk
0:00:43.1]} 33. Kf4 {[%clk 0:00:15.7]} 33... Rxf2+ {[%clk 0:00:39]} 34. Ke5
{[%clk 0:00:16]} 34... Rh5+ {[%clk 0:00:38.3]} 35. Kd4 {[%clk 0:00:11.8]} 35...
Rd2+ {[%clk 0:00:34.6]} 36. Kc5 {[%clk 0:00:11.6]} 36... h6 {[%clk 0:00:31.5]}
37. Kb6 {[%clk 0:00:08.2]} 37... d4 {[%clk 0:00:29.8]} 38. exd4 {[%clk 0:00:08]}
38... Rxd4 {[%clk 0:00:29.8]} 39. b5 {[%clk 0:00:08.5]} 39... e3 {[%clk
0:00:29.2]} 40. Rcc7 {[%clk 0:00:08.6]} 40... Rg5 {[%clk 0:00:27.3]} 41. Re7
{[%clk 0:00:08.6]} 41... Rd3 {[%clk 0:00:25]} 42. a4 {[%clk 0:00:08.6]} 42...
Rb3 {[%clk 0:00:24.9]} 43. Rac7 {[%clk 0:00:06.7]} 43... h5 {[%clk 0:00:24]} 44.
Rc8+ {[%clk 0:00:06.9]} 44... Kh7 {[%clk 0:00:23.6]} 45. Rce8 {[%clk 0:00:07.8]}
45... Rg3 {[%clk 0:00:19.9]} 46. Re5 {[%clk 0:00:08]} 46... Kg6 {[%clk
0:00:18.3]} 47. a5 {[%clk 0:00:08.4]} 47... h4 {[%clk 0:00:18.1]} 48. a6 {[%clk
0:00:08.3]} 48... h3 {[%clk 0:00:18.4]} 49. a7 {[%clk 0:00:08.8]} 49... Ra3
{[%clk 0:00:18.6]} 50. Rxe3 {[%clk 0:00:08.7]} 50... Rgxe3 {[%clk 0:00:17.1]}
51. Rxe3 {[%clk 0:00:09.6]} 51... Rxe3 {[%clk 0:00:16.7]} 52. a8=Q {[%clk
0:00:09.9]} 52... Kh7 {[%clk 0:00:15.6]} 53. Qh1 {[%clk 0:00:08.4]} 53... Re6+
{[%clk 0:00:15.1]} 54. Kc5 {[%clk 0:00:08.4]} 54... Rh6 {[%clk 0:00:15.1]} 55.
b6 {[%clk 0:00:08.5]} 55... Rh5+ {[%clk 0:00:13.4]} 56. Kc6 {[%clk 0:00:08.8]}
56... Rh6+ {[%clk 0:00:13]} 57. Kc7 {[%clk 0:00:09.3]} 57... g5 {[%clk
0:00:13.2]} 58. b7 {[%clk 0:00:09.4]} 58... g4 {[%clk 0:00:13.7]} 59. b8=Q
{[%clk 0:00:09.8]} 59... g3 {[%clk 0:00:14.2]} 60. Qbb1+ {[%clk 0:00:08.4]}
60... Kh8 {[%clk 0:00:12.6]} 61. Qb2+ {[%clk 0:00:08.4]} 61... Kh7 {[%clk
0:00:12.2]} 62. Qc2+ {[%clk 0:00:08.9]} 62... Kh8 {[%clk 0:00:12.1]} 63. Qc3+
{[%clk 0:00:09.3]} 63... Kh7 {[%clk 0:00:12.6]} 64. Qxg3 {[%clk 0:00:09.5]}
64... Rh5 {[%clk 0:00:10.7]} 65. Qhxh3 {[%clk 0:00:09.3]} 65... Rxh3 {[%clk
0:00:10.7]} 66. Qxh3+ {[%clk 0:00:10.2]} 66... Kg6 {[%clk 0:00:11.2]} 67. Qf3
{[%clk 0:00:10.4]} 67... Kg5 {[%clk 0:00:11.3]} 68. Kd6 {[%clk 0:00:10.4]} 68...
Kg6 {[%clk 0:00:11.9]} 69. Qf4 {[%clk 0:00:10.8]} 69... Kh5 {[%clk 0:00:08.5]}
70. Qg3 {[%clk 0:00:10.9]} 70... Kh6 {[%clk 0:00:08.3]} 71. Ke6 {[%clk
0:00:11.4]} 1-0

[Event "*** SCC Grand Prix: Titled Tuesday Blitz"]
[Site "Chess.com"]
[Date "2020.10.13"]
[Round "2"]
[White "Forantes"]
[Black "pirulillo"]
[Result "0-1"]
[WhiteElo "2437"]
[BlackElo "2254"]
[TimeControl "180+1"]
[EndTime "10:18:46 PDT"]
[Termination "pirulillo won by resignation"]

1. Nf3 {[%clk 0:03:00.9]} 1... Nf6 {[%clk 0:02:51]} 2. g3 {[%clk 0:03:01]} 2...
g6 {[%clk 0:02:47.8]} 3. Bg2 {[%clk 0:03:00.9]} 3... Bg7 {[%clk 0:02:48.7]} 4.
O-O {[%clk 0:03:00.6]} 4... O-O {[%clk 0:02:48.1]} 5. d4 {[%clk 0:03:01.1]} 5...
d6 {[%clk 0:02:47.5]} 6. c4 {[%clk 0:03:01.4]} 6... c6 {[%clk 0:02:46.6]} 7. Nc3
{[%clk 0:03:01.3]} 7... Qa5 {[%clk 0:02:41.3]} 8. e4 {[%clk 0:01:55.8]} 8... e5
{[%clk 0:02:38.6]} 9. h3 {[%clk 0:01:16.9]} 9... exd4 {[%clk 0:02:34]} 10. Nxd4
{[%clk 0:01:17.8]} 10... Nbd7 {[%clk 0:02:32.8]} 11. Be3 {[%clk 0:01:17.6]}
11... Ne5 {[%clk 0:02:27]} 12. Qe2 {[%clk 0:01:13.3]} 12... c5 {[%clk
0:01:38.9]} 13. Ndb5 {[%clk 0:01:00.8]} 13... Be6 {[%clk 0:01:36.2]} 14. Nxd6
{[%clk 0:00:52.3]} 14... Qb6 {[%clk 0:01:24.3]} 15. Rfd1 {[%clk 0:00:40.4]}
15... Rfd8 {[%clk 0:01:23.5]} 16. f4 {[%clk 0:00:40.2]} 16... Rxd6 {[%clk
0:01:21]} 17. fxe5 {[%clk 0:00:40.3]} 17... Rxd1+ {[%clk 0:01:20.8]} 18. Rxd1
{[%clk 0:00:41.2]} 18... Nd7 {[%clk 0:01:17.8]} 19. Nd5 {[%clk 0:00:32.9]} 19...
Qa5 {[%clk 0:01:09.3]} 20. b3 {[%clk 0:00:21.4]} 20... Bxe5 {[%clk 0:01:02.2]}
21. Qf2 {[%clk 0:00:18.7]} 21... b6 {[%clk 0:00:59.3]} 22. g4 {[%clk 0:00:17.9]}
22... Bg7 {[%clk 0:00:40.1]} 23. g5 {[%clk 0:00:16.6]} 23... Bxd5 {[%clk
0:00:38.9]} 24. Rxd5 {[%clk 0:00:15.5]} 24... Ne5 {[%clk 0:00:37.5]} 25. Bf4
{[%clk 0:00:14.4]} 25... Re8 {[%clk 0:00:37.4]} 26. Bxe5 {[%clk 0:00:14.4]}
26... Bxe5 {[%clk 0:00:35.5]} 27. Bf3 {[%clk 0:00:10]} 27... Bd4 {[%clk
0:00:32.9]} 28. Rxd4 {[%clk 0:00:09.5]} 28... cxd4 {[%clk 0:00:33.8]} 29. Qxd4
{[%clk 0:00:10.4]} 29... Qxg5+ {[%clk 0:00:31.7]} 30. Kf2 {[%clk 0:00:11]} 30...
Qc5 {[%clk 0:00:29.3]} 31. Qxc5 {[%clk 0:00:11.1]} 31... bxc5 {[%clk 0:00:30.1]}
32. Kg3 {[%clk 0:00:11.3]} 32... Kg7 {[%clk 0:00:29.2]} 33. Kf4 {[%clk
0:00:11.8]} 33... Kf6 {[%clk 0:00:29.1]} 34. Bg4 {[%clk 0:00:11.6]} 34... h5
{[%clk 0:00:28]} 35. Bd7 {[%clk 0:00:11.5]} 35... Rd8 {[%clk 0:00:27.2]} 36. e5+
{[%clk 0:00:11.5]} 36... Ke7 {[%clk 0:00:27.1]} 37. Bc6 {[%clk 0:00:11.5]} 37...
Rd2 {[%clk 0:00:26.5]} 38. Ke4 {[%clk 0:00:11.8]} 38... Rxa2 {[%clk 0:00:26.1]}
39. Kd5 {[%clk 0:00:12.3]} 39... Ra5 {[%clk 0:00:23.3]} 40. Bb5 {[%clk
0:00:10.9]} 40... g5 {[%clk 0:00:22.4]} 41. Kxc5 {[%clk 0:00:10.7]} 41... g4
{[%clk 0:00:21.7]} 42. hxg4 {[%clk 0:00:11.2]} 42... hxg4 {[%clk 0:00:21.3]} 43.
Kd4 {[%clk 0:00:12]} 43... g3 {[%clk 0:00:20]} 44. Bc6 {[%clk 0:00:12.4]} 44...
Ra2 {[%clk 0:00:18.8]} 45. c5 {[%clk 0:00:10.8]} 45... g2 {[%clk 0:00:18.6]} 46.
Bxg2 {[%clk 0:00:10.9]} 46... Rxg2 {[%clk 0:00:19.5]} 47. Kd5 {[%clk 0:00:11.4]}
47... Rd2+ {[%clk 0:00:17.2]} 48. Kc6 {[%clk 0:00:11.5]} 48... Rd3 {[%clk
0:00:16.7]} 49. b4 {[%clk 0:00:11.6]} 49... Rb3 {[%clk 0:00:16.7]} 50. b5 {[%clk
0:00:10.7]} 50... Ke6 {[%clk 0:00:16.8]} 51. b6 {[%clk 0:00:10.6]} 51... axb6
{[%clk 0:00:15.2]} 52. cxb6 {[%clk 0:00:11.2]} 52... Kxe5 {[%clk 0:00:15.3]} 53.
b7 {[%clk 0:00:11.6]} 53... Rxb7 {[%clk 0:00:14.9]} 54. Kxb7 {[%clk 0:00:12]}
54... f5 {[%clk 0:00:15.8]} 55. Kc6 {[%clk 0:00:12.9]} 55... Ke4 {[%clk
0:00:15.8]} 56. Kc5 {[%clk 0:00:13.8]} 56... f4 {[%clk 0:00:16]} 57. Kc4 {[%clk
0:00:14.4]} 57... Ke3 {[%clk 0:00:16.2]} 58. Kc3 {[%clk 0:00:15.3]} 58... f3
{[%clk 0:00:16.3]} 59. Kc2 {[%clk 0:00:16.2]} 59... Ke2 {[%clk 0:00:16.5]} 60.
Kc3 {[%clk 0:00:16.3]} 60... f2 {[%clk 0:00:16.7]} 61. Kd4 {[%clk 0:00:17.2]}
61... f1=Q {[%clk 0:00:16.8]} 62. Ke5 {[%clk 0:00:18.1]} 62... Qf3 {[%clk
0:00:16.8]} 63. Kd6 {[%clk 0:00:19]} 63... Qe4 {[%clk 0:00:16.9]} 64. Kc5 {[%clk
0:00:19.9]} 64... Kd3 {[%clk 0:00:16.3]} 65. Kb6 {[%clk 0:00:20.8]} 65... Qd5
{[%clk 0:00:16.3]} 66. Kc7 {[%clk 0:00:21.7]} 66... Qe6 {[%clk 0:00:16.4]} 67.
Kb7 {[%clk 0:00:21.3]} 67... Qd6 {[%clk 0:00:16.5]} 68. Kc8 {[%clk 0:00:21.2]}
68... Qe7 {[%clk 0:00:16.6]} 69. Kb8 {[%clk 0:00:21.2]} 69... Qd7 {[%clk
0:00:16.8]} 0-1

[Event "*** SCC Grand Prix: Titled Tuesday Blitz"]
[Site "Chess.com"]
[Date "2020.10.13"]
[Round "2"]
[White "WPWPWP-2015"]
[Black "Reader777"]
[Result "1-0"]
[WhiteElo "2486"]
[BlackElo "2689"]
[TimeControl "180+1"]
[EndTime "10:18:48 PDT"]
[Termination "WPWPWP-2015 won by resignation"]

1. e4 {[%clk 0:03:00.9]} 1... c5 {[%clk 0:02:59.5]} 2. Nf3 {[%clk 0:03:00.4]}
2... d6 {[%clk 0:02:58.7]} 3. Bb5+ {[%clk 0:03:00.9]} 3... Bd7 {[%clk
0:02:58.2]} 4. c4 {[%clk 0:03:00.3]} 4... Nc6 {[%clk 0:02:57.4]} 5. Nc3 {[%clk
0:02:59.9]} 5... g6 {[%clk 0:02:57.2]} 6. O-O {[%clk 0:02:59.2]} 6... Bg7 {[%clk
0:02:57.3]} 7. d3 {[%clk 0:02:59.4]} 7... Nf6 {[%clk 0:02:56.6]} 8. h3 {[%clk
0:02:59.2]} 8... O-O {[%clk 0:02:56.7]} 9. Bg5 {[%clk 0:02:57.2]} 9... Nd4
{[%clk 0:02:50.7]} 10. Nxd4 {[%clk 0:02:50.7]} 10... cxd4 {[%clk 0:02:50]} 11.
Ne2 {[%clk 0:02:48.5]} 11... Bxb5 {[%clk 0:02:48.3]} 12. cxb5 {[%clk 0:02:49.3]}
12... Qb6 {[%clk 0:02:43.7]} 13. a4 {[%clk 0:02:30.9]} 13... a6 {[%clk
0:02:43.2]} 14. bxa6 {[%clk 0:02:29]} 14... bxa6 {[%clk 0:02:38.5]} 15. Qd2
{[%clk 0:02:08.5]} 15... Rab8 {[%clk 0:02:37.7]} 16. Rfb1 {[%clk 0:02:07.8]}
16... a5 {[%clk 0:02:31.5]} 17. Qe1 {[%clk 0:01:45.7]} 17... e5 {[%clk
0:02:23.2]} 18. Bd2 {[%clk 0:01:45]} 18... Qa6 {[%clk 0:02:21.4]} 19. Ra3 {[%clk
0:01:42.8]} 19... Nd7 {[%clk 0:02:02.8]} 20. Bxa5 {[%clk 0:01:40.4]} 20... Nc5
{[%clk 0:02:01.6]} 21. Nc1 {[%clk 0:01:19.7]} 21... Qc6 {[%clk 0:01:50.4]} 22.
Qd1 {[%clk 0:01:08.1]} 22... f5 {[%clk 0:01:33.9]} 23. exf5 {[%clk 0:00:52.4]}
23... Rxf5 {[%clk 0:01:31]} 24. b4 {[%clk 0:00:51.4]} 24... Rg5 {[%clk 0:01:26]}
25. f3 {[%clk 0:00:50.5]} 25... Ne6 {[%clk 0:01:23.2]} 26. b5 {[%clk 0:00:48.7]}
26... Qa8 {[%clk 0:01:21.4]} 27. Bb4 {[%clk 0:00:34.5]} 27... Nf4 {[%clk
0:01:19.9]} 28. Ra2 {[%clk 0:00:32.3]} 28... Nxh3+ {[%clk 0:01:16.4]} 29. Kf1
{[%clk 0:00:32.6]} 29... Nf4 {[%clk 0:01:12]} 30. Bxd6 {[%clk 0:00:29.3]} 30...
Rh5 {[%clk 0:01:11.5]} 31. Kf2 {[%clk 0:00:23.8]} 31... Rd8 {[%clk 0:01:06.7]}
32. Bc7 {[%clk 0:00:22.7]} 32... Rg5 {[%clk 0:00:56.3]} 33. Kf1 {[%clk
0:00:21.6]} 33... Rh5 {[%clk 0:00:54.9]} 34. Ne2 {[%clk 0:00:20.2]} 34... Nd5
{[%clk 0:00:45.4]} 35. Qc1 {[%clk 0:00:15]} 35... Ne3+ {[%clk 0:00:35.8]} 36.
Kf2 {[%clk 0:00:14.8]} 36... Rg5 {[%clk 0:00:32.8]} 37. g4 {[%clk 0:00:13.9]}
37... Rf8 {[%clk 0:00:30.7]} 38. Qc6 {[%clk 0:00:12.7]} 38... Qc8 {[%clk
0:00:28]} 39. Ke1 {[%clk 0:00:11.8]} 39... Nxg4 {[%clk 0:00:25.5]} 40. b6 {[%clk
0:00:11.3]} 40... Qf5 {[%clk 0:00:23.8]} 41. b7 {[%clk 0:00:10.6]} 41... Nh2
{[%clk 0:00:20.4]} 42. b8=Q {[%clk 0:00:09.8]} 42... Nxf3+ {[%clk 0:00:20.5]}
43. Kd1 {[%clk 0:00:09.8]} 43... Qxd3+ {[%clk 0:00:20.3]} 44. Kc1 {[%clk
0:00:10.2]} 44... Qe3+ {[%clk 0:00:17.7]} 45. Kb2 {[%clk 0:00:06.6]} 45... Qxe2+
{[%clk 0:00:16.9]} 46. Ka1 {[%clk 0:00:07.1]} 46... Nd2 {[%clk 0:00:10.7]} 47.
Qd5+ {[%clk 0:00:07.1]} 47... Kh8 {[%clk 0:00:10.9]} 48. Qb2 {[%clk 0:00:06.7]}
48... Rg2 {[%clk 0:00:05.2]} 49. Bd6 {[%clk 0:00:06.4]} 49... Re8 {[%clk
0:00:03.3]} 50. Qxg2 {[%clk 0:00:05.6]} 50... Qxg2 {[%clk 0:00:03.2]} 51. Qxd2
{[%clk 0:00:06]} 51... Qd5 {[%clk 0:00:03.1]} 52. Ba3 {[%clk 0:00:05.3]} 52...
e4 {[%clk 0:00:03.5]} 53. Bb2 {[%clk 0:00:05.2]} 53... e3 {[%clk 0:00:02.4]} 54.
Qb4 {[%clk 0:00:05.2]} 54... e2 {[%clk 0:00:02.2]} 55. a5 {[%clk 0:00:05.2]}
55... Qe4 {[%clk 0:00:01.7]} 56. Re1 {[%clk 0:00:04.7]} 56... Qe3 {[%clk
0:00:01.6]} 57. a6 {[%clk 0:00:04.6]} 57... d3 {[%clk 0:00:01.4]} 58. Bxg7+
{[%clk 0:00:04.3]} 58... Kxg7 {[%clk 0:00:02.3]} 59. Qc3+ {[%clk 0:00:04.2]}
59... Kg8 {[%clk 0:00:01.9]} 60. a7 {[%clk 0:00:04.2]} 60... d2 {[%clk
0:00:01.7]} 61. Qxd2 {[%clk 0:00:04.1]} 61... Qxd2 {[%clk 0:00:01.7]} 62. Rxd2
{[%clk 0:00:03.7]} 62... Ra8 {[%clk 0:00:02.6]} 63. Ra2 {[%clk 0:00:03.9]} 63...
Rxa7 {[%clk 0:00:03.5]} 64. Rxa7 {[%clk 0:00:02.6]} 1-0

[Event "*** SCC Grand Prix: Titled Tuesday Blitz"]
[Site "Chess.com"]
[Date "2020.10.13"]
[Round "2"]
[White "Kapibara_Warri0r"]
[Black "Nara_Kh"]
[Result "0-1"]
[WhiteElo "2089"]
[BlackElo "2390"]
[TimeControl "180+1"]
[EndTime "10:18:53 PDT"]
[Termination "Nara_Kh won on time"]

1. d4 {[%clk 0:03:00.9]} 1... d5 {[%clk 0:02:59.3]} 2. c4 {[%clk 0:03:00.5]}
2... c6 {[%clk 0:02:59.5]} 3. Nc3 {[%clk 0:03:00.4]} 3... Nf6 {[%clk 0:02:59.5]}
4. Bg5 {[%clk 0:02:56.8]} 4... Bf5 {[%clk 0:02:45.1]} 5. Nf3 {[%clk 0:02:53.8]}
5... e6 {[%clk 0:02:44.2]} 6. e3 {[%clk 0:02:52.6]} 6... Nbd7 {[%clk 0:02:43.5]}
7. Bd3 {[%clk 0:02:50.6]} 7... Bg6 {[%clk 0:02:41.4]} 8. O-O {[%clk 0:02:49.4]}
8... Bd6 {[%clk 0:02:38.9]} 9. Bxg6 {[%clk 0:02:45.7]} 9... hxg6 {[%clk
0:02:38.5]} 10. c5 {[%clk 0:02:45.8]} 10... Bc7 {[%clk 0:02:31.9]} 11. g3 {[%clk
0:02:40]} 11... e5 {[%clk 0:01:54.8]} 12. dxe5 {[%clk 0:02:32]} 12... Nxe5
{[%clk 0:01:53.1]} 13. Nxe5 {[%clk 0:02:32]} 13... Bxe5 {[%clk 0:01:53.9]} 14.
f4 {[%clk 0:02:29.3]} 14... Bc7 {[%clk 0:01:36]} 15. f5 {[%clk 0:02:23.7]} 15...
Rh5 {[%clk 0:01:16.5]} 16. Bxf6 {[%clk 0:01:56.9]} 16... Qxf6 {[%clk 0:01:15.4]}
17. fxg6 {[%clk 0:01:57]} 17... Qxg6 {[%clk 0:01:15.3]} 18. Qf3 {[%clk
0:01:57.6]} 18... f6 {[%clk 0:01:05.5]} 19. e4 {[%clk 0:01:53.2]} 19... O-O-O
{[%clk 0:01:04.8]} 20. b4 {[%clk 0:01:42.2]} 20... Rdh8 {[%clk 0:00:58.4]} 21.
Rf2 {[%clk 0:01:41.9]} 21... Kb8 {[%clk 0:00:34.4]} 22. exd5 {[%clk 0:01:36.7]}
22... cxd5 {[%clk 0:00:33.6]} 23. Nxd5 {[%clk 0:01:33.2]} 23... Bxg3 {[%clk
0:00:24.1]} 24. hxg3 {[%clk 0:01:20.4]} 24... Rh1+ {[%clk 0:00:24.1]} 25. Qxh1
{[%clk 0:01:19.4]} 25... Rxh1+ {[%clk 0:00:25]} 26. Kxh1 {[%clk 0:01:18.4]}
26... Qe4+ {[%clk 0:00:22.7]} 27. Kh2 {[%clk 0:01:12.7]} 27... Qxd5 {[%clk
0:00:22.5]} 28. a3 {[%clk 0:01:07.2]} 28... Qd4 {[%clk 0:00:20.1]} 29. Raa2
{[%clk 0:01:05.4]} 29... Kc7 {[%clk 0:00:19.1]} 30. Rad2 {[%clk 0:01:03.3]}
30... Qc3 {[%clk 0:00:19.1]} 31. Ra2 {[%clk 0:00:59.9]} 31... Kc6 {[%clk
0:00:18.1]} 32. Rfe2 {[%clk 0:00:56.2]} 32... Qc4 {[%clk 0:00:17.7]} 33. Rad2
{[%clk 0:00:51.3]} 33... Qg4 {[%clk 0:00:18.1]} 34. Re7 {[%clk 0:00:45.3]} 34...
Qh5+ {[%clk 0:00:17.3]} 35. Kg2 {[%clk 0:00:43.6]} 35... Qg5 {[%clk 0:00:08.8]}
36. Rdd7 {[%clk 0:00:41.7]} 36... Kb5 {[%clk 0:00:09.4]} 37. Rxb7+ {[%clk
0:00:41.2]} 37... Kc4 {[%clk 0:00:09.2]} 38. Rxa7 {[%clk 0:00:36.3]} 38... Qd2+
{[%clk 0:00:09.2]} 39. Kh3 {[%clk 0:00:35.8]} 39... g5 {[%clk 0:00:09.4]} 40. c6
{[%clk 0:00:31.8]} 40... Qd1 {[%clk 0:00:04.5]} 41. Re4+ {[%clk 0:00:25.8]}
41... Kb5 {[%clk 0:00:02.9]} 42. Rae7 {[%clk 0:00:16.7]} 42... Qf1+ {[%clk
0:00:03]} 43. Kg4 {[%clk 0:00:15.8]} 43... f5+ {[%clk 0:00:02.5]} 44. Kxg5
{[%clk 0:00:16.4]} 44... fxe4 {[%clk 0:00:03.4]} 45. c7 {[%clk 0:00:15.8]} 45...
Qc1+ {[%clk 0:00:03.9]} 46. Kf5 {[%clk 0:00:15.3]} 46... e3 {[%clk 0:00:04.8]}
47. Re5+ {[%clk 0:00:14.1]} 47... Kb6 {[%clk 0:00:04.9]} 48. Rc5 {[%clk
0:00:13.1]} 48... Qf1+ {[%clk 0:00:05.4]} 49. Ke4 {[%clk 0:00:12.7]} 49... e2
{[%clk 0:00:05.9]} 50. Rc6+ {[%clk 0:00:09.2]} 50... Kxc6 {[%clk 0:00:05.1]} 51.
c8=Q+ {[%clk 0:00:10.1]} 51... Kd6 {[%clk 0:00:05.6]} 52. Qd8+ {[%clk
0:00:10.1]} 52... Kc6 {[%clk 0:00:06.1]} 53. Qc8+ {[%clk 0:00:09.8]} 53... Kb5
{[%clk 0:00:06.6]} 54. Qb7+ {[%clk 0:00:09.7]} 54... Ka4 {[%clk 0:00:07]} 55.
Qa6+ {[%clk 0:00:09.6]} 55... Kb3 {[%clk 0:00:07.4]} 56. Qd3+ {[%clk 0:00:09.7]}
56... Kb2 {[%clk 0:00:07.6]} 57. Qd2+ {[%clk 0:00:09.9]} 57... Kxa3 {[%clk
0:00:08.1]} 58. Qc3+ {[%clk 0:00:08.3]} 58... Ka4 {[%clk 0:00:08.6]} 59. Qc2+
{[%clk 0:00:07.8]} 59... Kb5 {[%clk 0:00:08.6]} 60. Qd3+ {[%clk 0:00:07.7]}
60... Kb6 {[%clk 0:00:09.1]} 61. Qd4+ {[%clk 0:00:07.9]} 61... Kc6 {[%clk
0:00:09.5]} 62. Qc4+ {[%clk 0:00:08.3]} 62... Kd6 {[%clk 0:00:09.8]} 63. Qc5+
{[%clk 0:00:08.6]} 63... Ke6 {[%clk 0:00:10.1]} 64. Qe5+ {[%clk 0:00:09.1]}
64... Kf7 {[%clk 0:00:10.2]} 65. Qd5+ {[%clk 0:00:09.6]} 65... Kg6 {[%clk
0:00:10.6]} 66. Qe6+ {[%clk 0:00:08.8]} 66... Kg7 {[%clk 0:00:09.6]} 67. Qd7+
{[%clk 0:00:08.3]} 67... Qf7 {[%clk 0:00:09.7]} 68. Qg4+ {[%clk 0:00:08.2]}
68... Qg6+ {[%clk 0:00:10.1]} 0-1